[Event "Titled Tuesday Blitz September 27 Early 2022"]
[White "Begmuratov, Khumoyun"]
[Black "Matveeva, Olga"]
[WhiteFideId "14210207"]
[BlackFideId "24107018"]
[WhiteElo "1978"]
[BlackElo "2056"]
[Result "1-0"]
[Round "02"]
[TimeControl "180+1"]
[Date "2022.09.27"]
[WhiteClock "0:02:06"]
[BlackClock "0:01:10"]

1. e4 {[%clk 0:03:00]}  e6 {[%clk 0:03:00]} 2. d3 {[%clk 0:03:00]}  d5 {[%clk 0:03:00]} 3. Nd2 {[%clk 0:02:57]}  Nf6 {[%clk 0:03:00]} 4. Ngf3 {[%clk 0:02:56]}  Nc6 {[%clk 0:03:01]} 5. e5 {[%clk 0:02:54]}  Nd7 {[%clk 0:03:00]} 6. d4 {[%clk 0:02:55]}  f6 {[%clk 0:03:00]} 7. exf6 {[%clk 0:02:55]}  Qxf6 {[%clk 0:03:01]} 8. c3 {[%clk 0:02:55]}  Bd6 {[%clk 0:03:00]} 9. Bd3 {[%clk 0:02:55]}  O-O {[%clk 0:02:59]} 10. O-O {[%clk 0:02:54]}  e5 {[%clk 0:02:57]} 11. dxe5 {[%clk 0:02:54]}  Ndxe5 {[%clk 0:02:56]} 12. Nxe5 {[%clk 0:02:55]}  Nxe5 {[%clk 0:02:57]} 13. Be2 {[%clk 0:02:53]}  c6 {[%clk 0:02:51]} 14. Nf3 {[%clk 0:02:52]}  Bg4 {[%clk 0:02:28]} 15. Nd4 {[%clk 0:02:45]}  Qh4 {[%clk 0:02:12]} 16. f4 {[%clk 0:02:36]}  Bxe2 {[%clk 0:02:02]} 17. Qxe2 {[%clk 0:02:37]}  Ng4 {[%clk 0:01:45]} 18. h3 {[%clk 0:02:28]}  Nf6 {[%clk 0:01:29]} 19. Qe6+ {[%clk 0:02:28]}  Kh8 {[%clk 0:01:19]} 20. Qxd6 {[%clk 0:02:27]}  Rae8 {[%clk 0:01:16]} 21. f5 {[%clk 0:02:23]}  Ne4 {[%clk 0:01:13]} 22. Qf4 {[%clk 0:02:22]}  Qh5 {[%clk 0:01:12]} 23. Qg4 {[%clk 0:02:18]}  Qf7 {[%clk 0:01:11]} 24. Bf4 {[%clk 0:02:13]}  c5 {[%clk 0:01:10]} 25. Ne6 {[%clk 0:02:06]} 1-0


[Site "https://www.chess.com"]

[Event "Titled Tuesday Blitz September 27 Early 2022"]
[White "Bilan, Danila"]
[Black "Azaladze, Shota"]
[WhiteFideId "24161918"]
[BlackFideId "13603027"]
[WhiteElo "2164"]
[BlackElo "2439"]
[Result "1-0"]
[Round "02"]
[TimeControl "180+1"]
[Date "2022.09.27"]
[WhiteClock "0:00:10"]
[BlackClock "0:00:15"]

1. d4 {[%clk 0:03:00]}  g6 {[%clk 0:02:59]} 2. Nf3 {[%clk 0:03:00]}  Bg7 {[%clk 0:02:59]} 3. Bg5 {[%clk 0:03:00]}  d6 {[%clk 0:02:59]} 4. c3 {[%clk 0:03:00]}  Nd7 {[%clk 0:02:57]} 5. e4 {[%clk 0:03:00]}  Ngf6 {[%clk 0:02:58]} 6. Nbd2 {[%clk 0:03:00]}  e5 {[%clk 0:02:57]} 7. Bc4 {[%clk 0:02:51]}  h6 {[%clk 0:02:57]} 8. Bh4 {[%clk 0:02:50]}  Qe7 {[%clk 0:02:55]} 9. O-O {[%clk 0:02:49]}  O-O {[%clk 0:02:48]} 10. Re1 {[%clk 0:02:47]}  Re8 {[%clk 0:02:46]} 11. Qc2 {[%clk 0:02:44]}  b6 {[%clk 0:02:46]} 12. a4 {[%clk 0:02:39]}  a6 {[%clk 0:02:45]} 13. Bd5 {[%clk 0:02:25]}  Rb8 {[%clk 0:02:39]} 14. Bc6 {[%clk 0:02:25]}  Bb7 {[%clk 0:02:17]} 15. d5 {[%clk 0:02:05]}  Bxc6 {[%clk 0:02:13]} 16. dxc6 {[%clk 0:02:05]}  Nf8 {[%clk 0:02:11]} 17. b4 {[%clk 0:01:58]}  Ne6 {[%clk 0:02:05]} 18. b5 {[%clk 0:01:56]}  Ra8 {[%clk 0:02:02]} 19. Nc4 {[%clk 0:01:51]}  g5 {[%clk 0:01:59]} 20. Bg3 {[%clk 0:01:51]}  Nc5 {[%clk 0:01:59]} 21. Nfd2 {[%clk 0:01:33]}  Qe6 {[%clk 0:01:58]} 22. Ne3 {[%clk 0:01:28]}  axb5 {[%clk 0:01:50]} 23. axb5 {[%clk 0:01:26]}  d5 {[%clk 0:01:48]} 24. exd5 {[%clk 0:01:10]}  Nxd5 {[%clk 0:01:49]} 25. Nf5 {[%clk 0:00:45]}  f6 {[%clk 0:01:19]} 26. Nxg7 {[%clk 0:00:33]}  Kxg7 {[%clk 0:01:20]} 27. h4 {[%clk 0:00:32]}  Ne7 {[%clk 0:01:04]} 28. hxg5 {[%clk 0:00:27]}  hxg5 {[%clk 0:01:05]} 29. Ne4 {[%clk 0:00:27]}  Nxe4 {[%clk 0:01:04]} 30. Qxe4 {[%clk 0:00:28]}  Nf5 {[%clk 0:01:04]} 31. Rxa8 {[%clk 0:00:26]}  Rxa8 {[%clk 0:01:04]} 32. Rd1 {[%clk 0:00:26]}  Nd6 {[%clk 0:01:04]} 33. Qb4 {[%clk 0:00:21]}  Re8 {[%clk 0:00:42]} 34. f3 {[%clk 0:00:21]}  f5 {[%clk 0:00:40]} 35. Bf2 {[%clk 0:00:21]}  f4 {[%clk 0:00:40]} 36. Bxb6 {[%clk 0:00:12]}  g4 {[%clk 0:00:35]} 37. Bxc7 {[%clk 0:00:12]}  Nf7 {[%clk 0:00:36]} 38. Qe4 {[%clk 0:00:10]}  Rh8 {[%clk 0:00:34]} 39. Rd7 {[%clk 0:00:10]}  g3 {[%clk 0:00:24]} 40. Qxe5+ {[%clk 0:00:08]}  Qxe5 {[%clk 0:00:18]} 41. Bxe5+ {[%clk 0:00:09]}  Kg6 {[%clk 0:00:17]} 42. Bxh8 {[%clk 0:00:10]}  Ne5 {[%clk 0:00:18]} 43. Rd4 {[%clk 0:00:09]}  Kf5 {[%clk 0:00:15]} 44. Bxe5 {[%clk 0:00:09]}  Kxe5 {[%clk 0:00:15]} 45. c7 {[%clk 0:00:10]} 1-0


[Site "https://www.chess.com"]

[Event "Titled Tuesday Blitz September 27 Early 2022"]
[White "Bluebaum, Matthias"]
[Black "Huber, Benedikt"]
[WhiteFideId "24651516"]
[BlackFideId "12923583"]
[WhiteElo "2633"]
[BlackElo "1979"]
[Result "1-0"]
[Round "02"]
[TimeControl "180+1"]
[Date "2022.09.27"]
[WhiteClock "0:01:25"]
[BlackClock "0:00:16"]

1. d4 {[%clk 0:03:00]}  e6 {[%clk 0:02:59]} 2. c4 {[%clk 0:03:00]}  f5 {[%clk 0:02:59]} 3. Nf3 {[%clk 0:02:59]}  Nf6 {[%clk 0:03:00]} 4. g3 {[%clk 0:02:58]}  Be7 {[%clk 0:03:00]} 5. Bg2 {[%clk 0:02:58]}  O-O {[%clk 0:03:01]} 6. O-O {[%clk 0:02:59]}  d6 {[%clk 0:03:02]} 7. Nc3 {[%clk 0:03:00]}  Ne4 {[%clk 0:03:02]} 8. Qc2 {[%clk 0:03:00]}  Nxc3 {[%clk 0:03:02]} 9. bxc3 {[%clk 0:03:01]}  Nc6 {[%clk 0:03:02]} 10. a4 {[%clk 0:02:56]}  e5 {[%clk 0:02:58]} 11. c5 {[%clk 0:02:33]}  e4 {[%clk 0:02:53]} 12. cxd6 {[%clk 0:02:34]}  Bxd6 {[%clk 0:02:51]} 13. Qa2+ {[%clk 0:02:28]}  Kh8 {[%clk 0:02:48]} 14. Ng5 {[%clk 0:02:28]}  Qe7 {[%clk 0:02:34]} 15. Nh3 {[%clk 0:02:29]}  Be6 {[%clk 0:02:27]} 16. Qb1 {[%clk 0:02:19]}  Bc4 {[%clk 0:02:19]} 17. Re1 {[%clk 0:02:14]}  Na5 {[%clk 0:02:18]} 18. Bg5 {[%clk 0:02:11]}  Qf7 {[%clk 0:02:15]} 19. Bf4 {[%clk 0:01:56]}  Nb3 {[%clk 0:01:32]} 20. Bxd6 {[%clk 0:01:55]}  cxd6 {[%clk 0:01:32]} 21. Ra3 {[%clk 0:01:55]}  Rfc8 {[%clk 0:01:30]} 22. f3 {[%clk 0:01:39]}  exf3 {[%clk 0:01:19]} 23. Bxf3 {[%clk 0:01:40]}  Nd2 {[%clk 0:01:08]} 24. Qxb7 {[%clk 0:01:38]}  Nxf3+ {[%clk 0:01:04]} 25. Qxf3 {[%clk 0:01:39]}  Bd5 {[%clk 0:01:03]} 26. e4 {[%clk 0:01:35]}  Be6 {[%clk 0:00:19]} 27. Ng5 {[%clk 0:01:34]}  Qf6 {[%clk 0:00:18]} 28. Nxe6 {[%clk 0:01:34]}  Qxe6 {[%clk 0:00:19]} 29. Qxf5 {[%clk 0:01:34]}  Qc4 {[%clk 0:00:18]} 30. Rf1 {[%clk 0:01:29]}  Kg8 {[%clk 0:00:17]} 31. Qd5+ {[%clk 0:01:26]}  Qxd5 {[%clk 0:00:17]} 32. exd5 {[%clk 0:01:27]}  Rc4 {[%clk 0:00:17]} 33. Rb3 {[%clk 0:01:27]}  Rxa4 {[%clk 0:00:16]} 34. Rb7 {[%clk 0:01:27]}  Ra2 {[%clk 0:00:16]} 35. Rff7 {[%clk 0:01:25]} 1-0


[Site "https://www.chess.com"]

[Event "Titled Tuesday Blitz September 27 Early 2022"]
[White "Bortnyk, Olexandr"]
[Black "Skliarov, Viktor"]
[WhiteFideId "14120828"]
[BlackFideId "14106736"]
[WhiteElo "2723"]
[BlackElo "2213"]
[Result "1-0"]
[Round "02"]
[TimeControl "180+1"]
[Date "2022.09.27"]
[WhiteClock "0:01:24"]
[BlackClock "0:00:52"]

1. e4 {[%clk 0:02:57]}  c5 {[%clk 0:02:59]} 2. c3 {[%clk 0:02:56]}  d6 {[%clk 0:02:59]} 3. d4 {[%clk 0:02:56]}  Nf6 {[%clk 0:02:59]} 4. Bd3 {[%clk 0:02:53]}  g6 {[%clk 0:02:59]} 5. dxc5 {[%clk 0:02:51]}  dxc5 {[%clk 0:02:58]} 6. e5 {[%clk 0:02:51]}  Nh5 {[%clk 0:02:52]} 7. Qe2 {[%clk 0:02:34]}  Nc6 {[%clk 0:02:44]} 8. Bc2 {[%clk 0:02:31]}  Qc7 {[%clk 0:02:25]} 9. f4 {[%clk 0:02:28]}  Bh6 {[%clk 0:02:19]} 10. g3 {[%clk 0:02:22]}  O-O {[%clk 0:02:19]} 11. Be3 {[%clk 0:02:16]}  b6 {[%clk 0:02:11]} 12. Nd2 {[%clk 0:02:11]}  Bb7 {[%clk 0:02:02]} 13. Ngf3 {[%clk 0:02:11]}  Rad8 {[%clk 0:01:59]} 14. O-O-O {[%clk 0:02:07]}  f5 {[%clk 0:01:40]} 15. exf6 {[%clk 0:01:49]}  exf6 {[%clk 0:01:33]} 16. f5 {[%clk 0:01:50]}  Bxe3 {[%clk 0:01:25]} 17. Qxe3 {[%clk 0:01:51]}  Rfe8 {[%clk 0:01:17]} 18. Qf2 {[%clk 0:01:33]}  Kg7 {[%clk 0:00:57]} 19. fxg6 {[%clk 0:01:33]}  hxg6 {[%clk 0:00:57]} 20. Rhf1 {[%clk 0:01:26]}  Ne5 {[%clk 0:00:52]} 21. Nxe5 {[%clk 0:01:25]}  Qxe5 {[%clk 0:00:52]} 22. g4 {[%clk 0:01:24]} 1-0


[Site "https://www.chess.com"]

[Event "Titled Tuesday Blitz September 27 Early 2022"]
[White "Chernikov, Vladimir"]
[Black "Johnson, Ben"]
[WhiteFideId "14112914"]
[BlackFideId "2010917"]
[WhiteElo "2095"]
[BlackElo "2200"]
[Result "0-1"]
[Round "02"]
[TimeControl "180+1"]
[Date "2022.09.27"]
[WhiteClock "0:00:31"]
[BlackClock "0:00:13"]

1. b3 {[%clk 0:03:00]}  e5 {[%clk 0:02:59]} 2. Bb2 {[%clk 0:03:00]}  Nc6 {[%clk 0:02:59]} 3. c4 {[%clk 0:03:00]}  Nf6 {[%clk 0:02:58]} 4. e3 {[%clk 0:03:00]}  g6 {[%clk 0:02:55]} 5. Nf3 {[%clk 0:02:59]}  e4 {[%clk 0:02:48]} 6. d4 {[%clk 0:02:59]}  exf3 {[%clk 0:02:39]} 7. d5 {[%clk 0:02:47]}  Nb8 {[%clk 0:02:39]} 8. Qxf3 {[%clk 0:02:46]}  Bg7 {[%clk 0:02:37]} 9. Nc3 {[%clk 0:02:45]}  O-O {[%clk 0:02:36]} 10. h4 {[%clk 0:02:45]}  h5 {[%clk 0:02:35]} 11. Bd3 {[%clk 0:02:44]}  d6 {[%clk 0:02:34]} 12. Qg3 {[%clk 0:02:42]}  Qe7 {[%clk 0:02:26]} 13. O-O-O {[%clk 0:02:41]}  a5 {[%clk 0:02:12]} 14. Rde1 {[%clk 0:02:34]}  Nbd7 {[%clk 0:02:05]} 15. f4 {[%clk 0:02:31]}  Nc5 {[%clk 0:02:01]} 16. Bc2 {[%clk 0:02:31]}  Nfe4 {[%clk 0:01:56]} 17. Nxe4 {[%clk 0:02:26]}  Bxb2+ {[%clk 0:01:56]} 18. Kxb2 {[%clk 0:02:25]}  Nxe4 {[%clk 0:01:56]} 19. Qf3 {[%clk 0:02:24]}  Bf5 {[%clk 0:01:45]} 20. g4 {[%clk 0:02:21]}  hxg4 {[%clk 0:01:43]} 21. Qg2 {[%clk 0:02:19]}  Nf6 {[%clk 0:01:27]} 22. e4 {[%clk 0:02:15]}  Bd7 {[%clk 0:01:20]} 23. e5 {[%clk 0:02:15]}  dxe5 {[%clk 0:01:17]} 24. fxe5 {[%clk 0:02:16]}  Nh5 {[%clk 0:01:16]} 25. e6 {[%clk 0:02:12]}  Qf6+ {[%clk 0:01:06]} 26. Kb1 {[%clk 0:02:10]}  fxe6 {[%clk 0:01:06]} 27. Qxg4 {[%clk 0:02:08]}  Kh7 {[%clk 0:00:42]} 28. Qxh5+ {[%clk 0:02:06]}  Kg7 {[%clk 0:00:42]} 29. Bxg6 {[%clk 0:02:04]}  Qxg6+ {[%clk 0:00:39]} 30. Qxg6+ {[%clk 0:02:02]}  Kxg6 {[%clk 0:00:40]} 31. dxe6 {[%clk 0:02:01]}  Bc6 {[%clk 0:00:36]} 32. Rhg1+ {[%clk 0:02:01]}  Kh6 {[%clk 0:00:36]} 33. e7 {[%clk 0:01:58]}  Rg8 {[%clk 0:00:34]} 34. Re6+ {[%clk 0:01:58]}  Kh7 {[%clk 0:00:31]} 35. Rf1 {[%clk 0:01:54]}  Rae8 {[%clk 0:00:26]} 36. h5 {[%clk 0:01:50]}  Rg7 {[%clk 0:00:27]} 37. Rfe1 {[%clk 0:01:47]}  Bf3 {[%clk 0:00:20]} 38. R1e5 {[%clk 0:01:43]}  Rf7 {[%clk 0:00:19]} 39. Kb2 {[%clk 0:01:37]}  Bc6 {[%clk 0:00:18]} 40. Rxa5 {[%clk 0:01:25]}  Rf2+ {[%clk 0:00:16]} 41. Kc3 {[%clk 0:01:23]}  Rf7 {[%clk 0:00:16]} 42. Rae5 {[%clk 0:01:22]}  Kg7 {[%clk 0:00:16]} 43. Rg6+ {[%clk 0:01:22]}  Kh7 {[%clk 0:00:15]} 44. Rge6 {[%clk 0:01:20]}  Bd7 {[%clk 0:00:15]} 45. Rg6 {[%clk 0:01:12]}  Rexe7 {[%clk 0:00:15]} 46. Rxe7 {[%clk 0:01:05]}  Rxe7 {[%clk 0:00:15]} 47. a4 {[%clk 0:01:04]}  Re5 {[%clk 0:00:14]} 48. Rg1 {[%clk 0:00:58]}  Rxh5 {[%clk 0:00:13]} 49. Re1 {[%clk 0:00:58]}  Rg5 {[%clk 0:00:09]} 50. b4 {[%clk 0:00:56]}  Kh6 {[%clk 0:00:08]} 51. b5 {[%clk 0:00:56]}  Rg7 {[%clk 0:00:08]} 52. Kb4 {[%clk 0:00:55]}  Kg6 {[%clk 0:00:08]} 53. Rf1 {[%clk 0:00:55]}  Rf7 {[%clk 0:00:07]} 54. Rd1 {[%clk 0:00:53]}  Kf6 {[%clk 0:00:05]} 55. a5 {[%clk 0:00:54]}  Ke7 {[%clk 0:00:05]} 56. a6 {[%clk 0:00:53]}  bxa6 {[%clk 0:00:06]} 57. bxa6 {[%clk 0:00:53]}  Rf2 {[%clk 0:00:06]} 58. Ra1 {[%clk 0:00:53]}  Bc6 {[%clk 0:00:06]} 59. Kc5 {[%clk 0:00:52]}  Bg2 {[%clk 0:00:05]} 60. a7 {[%clk 0:00:52]}  Ba8 {[%clk 0:00:04]} 61. Ra6 {[%clk 0:00:51]}  Kd7 {[%clk 0:00:04]} 62. Kb4 {[%clk 0:00:50]}  Rf5 {[%clk 0:00:04]} 63. c5 {[%clk 0:00:50]}  Rf4+ {[%clk 0:00:04]} 64. Kb5 {[%clk 0:00:49]}  Rf1 {[%clk 0:00:05]} 65. c6+ {[%clk 0:00:47]}  Kd6 {[%clk 0:00:05]} 66. Kb4 {[%clk 0:00:47]}  Rb1+ {[%clk 0:00:05]} 67. Kc3 {[%clk 0:00:47]}  Rb6 {[%clk 0:00:05]} 68. Ra1 {[%clk 0:00:44]}  Rxc6+ {[%clk 0:00:05]} 69. Kb4 {[%clk 0:00:44]}  Rb6+ {[%clk 0:00:06]} 70. Ka5 {[%clk 0:00:45]}  Kc6 {[%clk 0:00:06]} 71. Rc1+ {[%clk 0:00:43]}  Kb7 {[%clk 0:00:07]} 72. Ka4 {[%clk 0:00:42]}  Ra6+ {[%clk 0:00:07]} 73. Kb5 {[%clk 0:00:42]}  Rxa7 {[%clk 0:00:08]} 74. Rg1 {[%clk 0:00:40]}  Ra6 {[%clk 0:00:08]} 75. Rg8 {[%clk 0:00:40]}  Rb6+ {[%clk 0:00:09]} 76. Kc5 {[%clk 0:00:40]}  Rh6 {[%clk 0:00:10]} 77. Rg7 {[%clk 0:00:39]}  Rh5+ {[%clk 0:00:10]} 78. Kb4 {[%clk 0:00:39]}  Kb6 {[%clk 0:00:10]} 79. Rg6+ {[%clk 0:00:39]}  Bc6 {[%clk 0:00:10]} 80. Rf6 {[%clk 0:00:39]}  Rh4+ {[%clk 0:00:11]} 81. Kc3 {[%clk 0:00:39]}  Kc5 {[%clk 0:00:11]} 82. Rf5+ {[%clk 0:00:39]}  Bd5 {[%clk 0:00:11]} 83. Rg5 {[%clk 0:00:39]}  c6 {[%clk 0:00:11]} 84. Kd2 {[%clk 0:00:39]}  Rh3 {[%clk 0:00:12]} 85. Kc2 {[%clk 0:00:39]}  Ra3 {[%clk 0:00:12]} 86. Kb2 {[%clk 0:00:39]}  Rf3 {[%clk 0:00:13]} 87. Kc2 {[%clk 0:00:39]}  Kd4 {[%clk 0:00:13]} 88. Rg4+ {[%clk 0:00:38]}  Be4+ {[%clk 0:00:14]} 89. Kd2 {[%clk 0:00:39]}  c5 {[%clk 0:00:14]} 90. Ke2 {[%clk 0:00:38]}  Ra3 {[%clk 0:00:13]} 91. Ke1 {[%clk 0:00:38]}  c4 {[%clk 0:00:14]} 92. Kd2 {[%clk 0:00:38]}  c3+ {[%clk 0:00:14]} 93. Ke1 {[%clk 0:00:37]}  Ra2 {[%clk 0:00:14]} 94. Rg8 {[%clk 0:00:32]}  Ke3 {[%clk 0:00:14]} 95. Rg3+ {[%clk 0:00:31]}  Bf3 {[%clk 0:00:13]} 0-1


[Site "https://www.chess.com"]

[Event "Titled Tuesday Blitz September 27 Early 2022"]
[White "Ciuffoletti, Paolo"]
[Black "Nygren, Kim"]
[WhiteFideId "807630"]
[BlackFideId "1706136"]
[WhiteElo "2143"]
[BlackElo "2209"]
[Result "1-0"]
[Round "02"]
[TimeControl "180+1"]
[Date "2022.09.27"]
[WhiteClock "0:00:58"]
[BlackClock "0:00:58"]

1. e4 {[%clk 0:03:00]}  e5 {[%clk 0:02:59]} 2. Nf3 {[%clk 0:03:00]}  Nc6 {[%clk 0:02:58]} 3. Bc4 {[%clk 0:03:00]}  Nf6 {[%clk 0:02:58]} 4. d4 {[%clk 0:02:59]}  Nxe4 {[%clk 0:02:54]} 5. dxe5 {[%clk 0:02:58]}  Nc5 {[%clk 0:02:50]} 6. Be3 {[%clk 0:02:57]}  Ne6 {[%clk 0:02:49]} 7. O-O {[%clk 0:02:54]}  Be7 {[%clk 0:02:49]} 8. Nc3 {[%clk 0:02:54]}  O-O {[%clk 0:02:49]} 9. Ne4 {[%clk 0:02:49]}  b6 {[%clk 0:02:43]} 10. Qd2 {[%clk 0:02:45]}  Bb7 {[%clk 0:02:43]} 11. Rad1 {[%clk 0:02:38]}  Nxe5 {[%clk 0:02:21]} 12. Nxe5 {[%clk 0:02:35]}  Bxe4 {[%clk 0:02:22]} 13. Nxd7 {[%clk 0:02:09]}  Bd6 {[%clk 0:02:22]} 14. Nxf8 {[%clk 0:01:56]}  Qh4 {[%clk 0:02:18]} 15. h3 {[%clk 0:01:52]}  Nf4 {[%clk 0:02:07]} 16. Bxf4 {[%clk 0:01:43]}  Bxf4 {[%clk 0:02:08]} 17. Qd7 {[%clk 0:01:41]}  Rxf8 {[%clk 0:02:05]} 18. Qg4 {[%clk 0:01:30]}  Qh6 {[%clk 0:02:04]} 19. Rd7 {[%clk 0:01:24]}  Bg6 {[%clk 0:01:58]} 20. Rfd1 {[%clk 0:01:16]}  Bh5 {[%clk 0:00:58]} 21. Qf5 {[%clk 0:01:00]}  Bxd1 {[%clk 0:00:58]} 22. Rxf7 {[%clk 0:00:58]} 1-0


[Site "https://www.chess.com"]

[Event "Titled Tuesday Blitz September 27 Early 2022"]
[White "Concio, Michael Jr."]
[Black "Zheenbekov, Nurgazy"]
[WhiteFideId "5217873"]
[BlackFideId "13800485"]
[WhiteElo "1896"]
[BlackElo "1932"]
[Result "1-0"]
[Round "02"]
[TimeControl "180+1"]
[Date "2022.09.27"]
[WhiteClock "0:00:16"]
[BlackClock "0:00:18"]

1. Nf3 {[%clk 0:03:00]}  d5 {[%clk 0:02:58]} 2. c4 {[%clk 0:03:00]}  d4 {[%clk 0:02:55]} 3. d3 {[%clk 0:02:59]}  c5 {[%clk 0:02:55]} 4. g3 {[%clk 0:02:57]}  Nc6 {[%clk 0:02:54]} 5. Bg2 {[%clk 0:02:57]}  e5 {[%clk 0:02:54]} 6. O-O {[%clk 0:02:57]}  Nf6 {[%clk 0:02:53]} 7. b4 {[%clk 0:02:54]}  cxb4 {[%clk 0:02:52]} 8. a3 {[%clk 0:02:54]}  bxa3 {[%clk 0:02:51]} 9. Bxa3 {[%clk 0:02:55]}  Bxa3 {[%clk 0:02:50]} 10. Nxa3 {[%clk 0:02:55]}  O-O {[%clk 0:02:50]} 11. Nd2 {[%clk 0:02:50]}  a6 {[%clk 0:02:41]} 12. Qb3 {[%clk 0:02:45]}  Qc7 {[%clk 0:02:34]} 13. Rfb1 {[%clk 0:02:43]}  Rb8 {[%clk 0:02:31]} 14. Qb6 {[%clk 0:02:24]}  Qxb6 {[%clk 0:02:19]} 15. Rxb6 {[%clk 0:02:25]}  Nd7 {[%clk 0:02:15]} 16. Rb2 {[%clk 0:02:21]}  Ra8 {[%clk 0:02:11]} 17. Rab1 {[%clk 0:02:11]}  Nc5 {[%clk 0:02:10]} 18. Ne4 {[%clk 0:01:46]}  Nxe4 {[%clk 0:02:06]} 19. Bxe4 {[%clk 0:01:47]}  g6 {[%clk 0:01:59]} 20. Rb6 {[%clk 0:01:42]}  h5 {[%clk 0:01:54]} 21. Bxc6 {[%clk 0:01:30]}  bxc6 {[%clk 0:01:53]} 22. Rxc6 {[%clk 0:01:31]}  h4 {[%clk 0:01:53]} 23. f3 {[%clk 0:01:28]}  hxg3 {[%clk 0:01:50]} 24. hxg3 {[%clk 0:01:29]}  Be6 {[%clk 0:01:39]} 25. Rbb6 {[%clk 0:01:29]}  Rfb8 {[%clk 0:01:36]} 26. Rxb8+ {[%clk 0:01:09]}  Rxb8 {[%clk 0:01:35]} 27. Rxa6 {[%clk 0:01:09]}  Rb2 {[%clk 0:01:33]} 28. Kf1 {[%clk 0:01:06]}  Kf8 {[%clk 0:01:26]} 29. g4 {[%clk 0:01:02]}  Bd7 {[%clk 0:01:20]} 30. Ra7 {[%clk 0:01:00]}  Ke8 {[%clk 0:01:20]} 31. Ra5 {[%clk 0:00:54]}  f6 {[%clk 0:01:07]} 32. g5 {[%clk 0:00:51]}  Ke7 {[%clk 0:01:07]} 33. gxf6+ {[%clk 0:00:51]}  Kxf6 {[%clk 0:01:08]} 34. Nb5 {[%clk 0:00:25]}  g5 {[%clk 0:01:04]} 35. Nd6 {[%clk 0:00:23]}  g4 {[%clk 0:01:04]} 36. Ne4+ {[%clk 0:00:23]}  Ke7 {[%clk 0:01:02]} 37. Kf2 {[%clk 0:00:18]}  gxf3 {[%clk 0:01:02]} 38. Kxf3 {[%clk 0:00:19]}  Bc6 {[%clk 0:00:33]} 39. Rxe5+ {[%clk 0:00:19]}  Kd7 {[%clk 0:00:33]} 40. Rg5 {[%clk 0:00:18]}  Bxe4+ {[%clk 0:00:31]} 41. Kxe4 {[%clk 0:00:18]}  Rxe2+ {[%clk 0:00:31]} 42. Kxd4 {[%clk 0:00:19]}  Rf2 {[%clk 0:00:30]} 43. Kd5 {[%clk 0:00:17]}  Rf7 {[%clk 0:00:28]} 44. d4 {[%clk 0:00:18]}  Kc7 {[%clk 0:00:27]} 45. Kc5 {[%clk 0:00:18]}  Kd7 {[%clk 0:00:25]} 46. d5 {[%clk 0:00:18]}  Rh7 {[%clk 0:00:24]} 47. Rg1 {[%clk 0:00:17]}  Rf7 {[%clk 0:00:23]} 48. Ra1 {[%clk 0:00:17]}  Rf4 {[%clk 0:00:22]} 49. Ra7+ {[%clk 0:00:17]}  Kd8 {[%clk 0:00:22]} 50. d6 {[%clk 0:00:15]}  Rh4 {[%clk 0:00:18]} 51. Kd5 {[%clk 0:00:16]} 1-0


[Site "https://www.chess.com"]

[Event "Titled Tuesday Blitz September 27 Early 2022"]
[White "Crevatin, Leo"]
[Black "Saydaliev, Saidakbar"]
[WhiteFideId "1726307"]
[BlackFideId "14203693"]
[WhiteElo "2156"]
[BlackElo "2265"]
[Result "0-1"]
[Round "02"]
[TimeControl "180+1"]
[Date "2022.09.27"]
[WhiteClock "0:00:02"]
[BlackClock "0:00:34"]

1. e4 {[%clk 0:03:00]}  e5 {[%clk 0:02:59]} 2. Nf3 {[%clk 0:03:00]}  Nc6 {[%clk 0:03:00]} 3. Bc4 {[%clk 0:03:00]}  Nf6 {[%clk 0:02:59]} 4. d3 {[%clk 0:03:01]}  Bc5 {[%clk 0:02:59]} 5. Bg5 {[%clk 0:03:01]}  h6 {[%clk 0:02:58]} 6. Bh4 {[%clk 0:03:01]}  d6 {[%clk 0:02:57]} 7. c3 {[%clk 0:03:00]}  a6 {[%clk 0:02:55]} 8. a4 {[%clk 0:02:57]}  Ba7 {[%clk 0:02:55]} 9. Nbd2 {[%clk 0:02:52]}  g5 {[%clk 0:02:52]} 10. Bg3 {[%clk 0:02:52]}  Qe7 {[%clk 0:02:53]} 11. b4 {[%clk 0:02:47]}  Be6 {[%clk 0:02:38]} 12. b5 {[%clk 0:02:32]}  Nd8 {[%clk 0:02:37]} 13. Qb3 {[%clk 0:02:29]}  Bxc4 {[%clk 0:02:34]} 14. Nxc4 {[%clk 0:02:26]}  Ne6 {[%clk 0:02:34]} 15. Ne3 {[%clk 0:02:24]}  Bxe3 {[%clk 0:02:32]} 16. fxe3 {[%clk 0:02:23]}  h5 {[%clk 0:02:32]} 17. O-O {[%clk 0:02:05]}  a5 {[%clk 0:02:24]} 18. Qc2 {[%clk 0:01:32]}  h4 {[%clk 0:02:20]} 19. Be1 {[%clk 0:01:31]}  h3 {[%clk 0:02:15]} 20. g3 {[%clk 0:01:28]}  Ng4 {[%clk 0:01:18]} 21. Qe2 {[%clk 0:01:19]}  O-O-O {[%clk 0:01:16]} 22. c4 {[%clk 0:01:08]}  b6 {[%clk 0:01:16]} 23. d4 {[%clk 0:01:08]}  Rhe8 {[%clk 0:01:11]} 24. Rc1 {[%clk 0:00:35]}  Kb8 {[%clk 0:01:09]} 25. Kh1 {[%clk 0:00:29]}  exd4 {[%clk 0:01:04]} 26. exd4 {[%clk 0:00:27]}  Ng7 {[%clk 0:01:04]} 27. Nd2 {[%clk 0:00:23]}  f5 {[%clk 0:01:04]} 28. Qf3 {[%clk 0:00:20]}  Nf6 {[%clk 0:01:01]} 29. exf5 {[%clk 0:00:19]}  g4 {[%clk 0:01:00]} 30. Qd3 {[%clk 0:00:18]}  Qe2 {[%clk 0:00:58]} 31. Qxe2 {[%clk 0:00:15]}  Rxe2 {[%clk 0:00:59]} 32. Rf2 {[%clk 0:00:13]}  Re3 {[%clk 0:00:52]} 33. c5 {[%clk 0:00:11]}  Rde8 {[%clk 0:00:49]} 34. Rf1 {[%clk 0:00:10]}  Nxf5 {[%clk 0:00:40]} 35. cxb6 {[%clk 0:00:07]}  cxb6 {[%clk 0:00:40]} 36. Nc4 {[%clk 0:00:07]}  Re2 {[%clk 0:00:36]} 37. Nxb6 {[%clk 0:00:03]}  Nxd4 {[%clk 0:00:34]} 38. Bxa5 {[%clk 0:00:03]}  Nf3 {[%clk 0:00:33]} 39. Rxf3 {[%clk 0:00:03]}  gxf3 {[%clk 0:00:33]} 40. Nc4 {[%clk 0:00:03]}  Ng4 {[%clk 0:00:33]} 41. Nxd6 {[%clk 0:00:02]}  Rxh2+ {[%clk 0:00:33]} 42. Kg1 {[%clk 0:00:02]}  Rg2+ {[%clk 0:00:34]} 43. Kh1 {[%clk 0:00:02]}  Nf2# {[%clk 0:00:34]} 0-1


[Site "https://www.chess.com"]